bitfinex/quotes_SOLUSD_20241105
["timestamp","ask_amount","ask_price","bid_price","bid_amount"]
[1730826534254,40.56046591,169.2,169.15,16.78358191]
[1730826534453,23.776884,169.2,169.16,16.78358191]
[1730826534768,16.78358191,169.19,169.13,16.78358191]
[1730826535145,46.47066591,169.2,169.14,16.78358191]
[1730826535350,46.47066591,169.2,169.15,16.78358191]
[1730826535553,46.47066591,169.2,169.14,16.78358191]
[1730826536551,16.78358191,169.19,169.14,16.78358191]
[1730826536859,29.687084,169.2,169.13,20.6939]
[1730826536860,16.78358191,169.18,169.13,31.56508191]
[1730826537057,46.47066591,169.2,169.14,16.78358191]
[1730826537262,46.47066591,169.2,169.15,16.78358191]
[1730826537263,29.687084,169.2,169.15,16.78358191]
[1730826537952,16.78358191,169.19,169.14,22.69578191]
[1730826539044,29.687684,169.18,169.13,31.56508191]
[1730826539852,16.78358191,169.21,169.15,16.78358191]
[1730826540063,23.776884,169.2,169.15,16.78358191]
[1730826540647,16.78358191,169.19,169.13,37.47768191]
[1730826540968,16.78358191,169.18,169.13,37.47768191]
[1730826541270,22.69418191,169.19,169.13,37.47768191]
[1730826541954,5.9101,169.2,169.15,16.78358191]
[1730826542547,23.776884,169.19,169.15,16.78358191]
[1730826542762,23.776884,169.19,169.14,16.78358191]
[1730826542943,5.9108,169.18,169.13,16.78358191]
[1730826543157,40.56046591,169.17,169.12,0.3102332]
[1730826543363,40.56046591,169.17,169.12,11.06202104]
[1730826543364,23.776884,169.17,169.12,11.06202104]
[1730826543548,23.776884,169.17,169.12,16.97492104]
[1730826543755,23.776884,169.17,169.12,11.06202104]
[1730826543952,23.776884,169.17,169.13,10.75178784]
[1730826544252,23.776884,169.17,169.14,10.75178784]
[1730826545054,23.776884,169.17,169.12,31.75722104]
[1730826545454,16.66158784,169.21,169.15,10.75178784]
[1730826545652,5.9092,169.23,169.17,10.75178784]
[1730826545856,16.66098784,169.23,169.17,10.75178784]
[1730826546870,5.9092,169.23,169.18,10.75178784]
[1730826547184,16.66098784,169.23,169.17,16.66288784]
[1730826547478,5.9092,169.23,169.18,10.75178784]
[1730826547659,16.66058784,169.24,169.18,10.75178784]
[1730826548370,32.53768784,169.25,169.19,10.75178784]
[1730826548574,23.776884,169.24,169.19,10.75178784]
[1730826548971,29.685684,169.24,169.19,10.75178784]
[1730826549352,29.685684,169.24,169.19,16.78347886]
[1730826549679,23.776884,169.24,169.2,16.78347886]
[1730826549883,23.776884,169.24,169.19,16.78347886]
[1730826550676,40.56036286,169.24,169.19,5.9104]
[1730826551174,23.776884,169.24,169.19,22.69387886]
[1730826552255,5.9084,169.25,169.2,16.78347886]
[1730826552961,15.7241,169.29,169.24,16.78347886]
[1730826553158,15.7241,169.29,169.25,16.78347886]
[1730826553361,23.28497886,169.31,169.26,16.78347886]
[1730826553562,16.78347886,169.32,169.27,16.78347886]
[1730826554065,23.776884,169.31,169.26,16.78347886]
[1730826554269,46.46666286,169.31,169.26,16.78347886]
[1730826554583,29.683184,169.31,169.25,16.78347886]
[1730826554757,23.776884,169.29,169.25,16.78347886]
[1730826554957,16.78347886,169.3,169.25,16.78347886]
[1730826555152,16.78347886,169.3,169.2,16.78347886]
[1730826555153,16.78347886,169.26,169.17,14.7774]
[1730826555357,16.78347886,169.22,169.17,14.7774]
[1730826555554,16.78347886,169.2,169.15,27.6188]
[1730826555865,16.78347886,169.2,169.14,16.78347886]
[1730826556067,16.78347886,169.22,169.16,16.78347886]
[1730826556267,23.776884,169.21,169.16,16.78347886]
[1730826557081,16.78347886,169.2,169.15,22.69517886]
[1730826557284,46.47036286,169.21,169.15,22.69517886]
[1730826558775,16.2118,169.25,169.17,16.78347886]
[1730826558979,6.2718,169.27,169.17,16.78347886]
[1730826558980,16.78347886,169.23,169.17,16.78347886]
[1730826559364,16.78347886,169.23,169.18,16.78347886]
[1730826559568,16.78347886,169.25,169.19,16.78347886]
[1730826559975,22.69247886,169.24,169.18,16.78347886]
[1730826560158,23.776884,169.23,169.18,22.69427886]
[1730826560360,23.776884,169.23,169.19,16.78347886]
[1730826560561,23.776884,169.23,169.18,37.47137886]
[1730826560961,40.56036286,169.23,169.18,20.6879]
[1730826561265,40.56036286,169.23,169.18,14.7771]
[1730826561882,23.776884,169.23,169.2,16.78347886]
[1730826562061,5.9073,169.28,169.22,16.78347886]
[1730826562272,21.3596,169.29,169.25,16.78347886]
[1730826562578,5.9071,169.29,169.25,16.78347886]
[1730826562885,5.9071,169.29,169.24,16.78347886]
[1730826563087,22.69057886,169.29,169.24,16.78347886]
[1730826563383,22.69057886,169.29,169.2,16.78347886]
[1730826563384,5.9071,169.29,169.25,16.78347886]
[1730826564170,22.68937886,169.32,169.26,16.78347886]
[1730826564471,16.78347886,169.3,169.25,16.78347886]
[1730826564966,16.78347886,169.31,169.25,16.78347886]
[1730826565362,16.78347886,169.29,169.24,16.78347886]
[1730826566288,23.776884,169.28,169.24,16.78347886]
[1730826566474,23.776884,169.28,169.25,16.78347886]
[1730826567588,23.776884,169.28,169.24,16.78347886]
[1730826568369,23.776884,169.29,169.24,16.78347886]
[1730826568567,23.776884,169.29,169.25,16.78347886]
[1730826569569,23.776884,169.29,169.24,16.78347886]
[1730826569771,46.46736286,169.29,169.23,22.69227886]
[1730826570172,23.776884,169.27,169.22,16.78347886]
[1730826570491,16.78347886,169.26,169.21,37.46677886]
[1730826570790,23.776884,169.27,169.24,16.78347886]
[1730826570981,16.78347886,169.3,169.25,16.78347886]
[1730826571177,23.776884,169.29,169.24,16.78347886]
[1730826571698,46.46766286,169.29,169.24,16.78347886]
[1730826571988,16.78347886,169.28,169.23,16.78347886]
[1730826572293,23.776884,169.27,169.23,16.78347886]
[1730826572884,40.56036286,169.27,169.21,31.55727886]
[1730826573197,16.78347886,169.24,169.18,16.78347886]
[1730826573493,40.56036286,169.23,169.17,37.47207886]
[1730826573693,40.56036286,169.23,169.18,16.78347886]
[1730826573871,40.56036286,169.23,169.17,37.47207886]
[1730826574192,23.776884,169.21,169.16,16.78347886]
[1730826574388,40.56036286,169.21,169.16,16.78347886]
[1730826574975,29.686784,169.21,169.17,16.78347886]
[1730826575589,29.686784,169.21,169.16,16.78347886]
[1730826576366,46.47026286,169.21,169.15,16.78347886]
[1730826576681,40.56036286,169.19,169.14,14.7806]
[1730826576875,40.56036286,169.17,169.12,23.00661206]
[1730826577081,23.776884,169.16,169.12,17.09371206]
[1730826577503,23.776884,169.18,169.13,16.78347886]
[1730826577791,23.776884,169.17,169.12,23.00651206]
[1730826578181,23.776884,169.17,169.14,16.78347886]
[1730826578687,16.78347886,169.19,169.15,16.78347886]
[1730826578688,23.776884,169.19,169.15,16.78347886]
[1730826578893,5.9104,169.2,169.15,16.78347886]
[1730826580204,23.776884,169.19,169.15,16.78347886]
[1730826580574,40.56036286,169.19,169.14,16.78347886]
[1730826580779,23.776884,169.17,169.12,31.87611206]
[1730826581099,40.56036286,169.17,169.12,31.87611206]
[1730826581875,46.47156286,169.17,169.12,31.87611206]
[1730826582377,29.688084,169.17,169.13,16.78347886]
[1730826583194,29.688084,169.17,169.12,31.87611206]
[1730826583580,29.688084,169.17,169.13,16.78347886]
[1730826584898,46.47156286,169.17,169.12,31.87611206]
[1730826585501,46.47156286,169.17,169.12,17.09371206]
[1730826585794,70.1,169.23,169.16,16.78347886]
[1730826585973,5.9094,169.22,169.16,16.78347886]
[1730826586180,16.78347886,169.21,169.16,16.78347886]
[1730826586876,3.14028115,169.26,169.17,36.78347886]
[1730826587083,5.908,169.26,169.22,16.78347886]
[1730826587676,5.908,169.26,169.21,16.78347886]
[1730826588179,22.69147886,169.26,169.21,16.78347886]
[1730826588380,23.776884,169.25,169.21,16.78347886]
[1730826588776,40.56036286,169.25,169.15,22.552]
[1730826589095,5.908,169.26,169.18,16.78347886]
[1730826589096,40.56036286,169.23,169.18,16.78347886]
[1730826589287,40.56036286,169.23,169.17,31.56147886]
[1730826589486,40.56036286,169.23,169.18,16.78347886]
[1730826589688,40.56036286,169.24,169.19,16.78347886]
[1730826590186,46.46936286,169.24,169.19,16.78347886]
[1730826590583,16.78347886,169.23,169.18,16.78347886]
[1730826590801,70.0,169.22,169.15,16.78347886]
[1730826591108,40.56036286,169.18,169.13,37.47667886]
[1730826591506,23.776884,169.18,169.13,37.47667886]
[1730826591695,23.776884,169.18,169.12,0.3102332]
[1730826591696,40.56036286,169.15,169.12,0.3102332]
[1730826591893,23.776884,169.14,169.12,0.3102332]
[1730826592313,40.56036286,169.14,169.12,0.3102332]
[1730826592493,40.56036286,169.13,169.12,0.3102332]
[1730826592689,23.776884,169.13,169.12,0.3102332]
[1730826594219,46.47296286,169.13,169.12,0.3102332]
[1730826596912,116.67296286,169.13,169.12,0.3102332]
[1730826597713,116.47296286,169.13,169.12,0.3102332]
[1730826597887,116.57296286,169.13,169.12,0.3102332]
[1730826598093,116.67296286,169.13,169.12,0.3102332]
[1730826600816,153.45644172,169.13,169.12,0.3102332]
[1730826601116,23.776884,169.06,169.03,0.3102332]
[1730826602307,16.78347886,169.05,169.03,0.3102332]
[1730826603121,23.776884,169.04,169.03,0.3102332]
[1730826604105,116.47606286,169.04,169.03,0.3102332]
[1730826604722,29.692584,169.04,169.03,0.3102332]
[1730826605725,23.776884,169.04,169.03,0.3102332]
[1730826605924,86.78347886,169.1,169.03,17.09371206]
[1730826606135,16.2912,169.12,169.07,16.78347886]
[1730826606136,22.1041,169.12,169.07,16.78347886]
[1730826606419,22.1041,169.12,169.03,6.2260332]
[1730826606420,86.78347886,169.14,169.08,16.78347886]
[1730826606597,16.78347886,169.15,169.09,16.78347886]
[1730826606801,16.78347886,169.18,169.12,16.78347886]
[1730826607112,16.78347886,169.18,169.04,20.0]
[1730826607113,92.69387886,169.2,169.14,16.78347886]
[1730826607414,32.77613359,169.21,169.15,26.86623359]
[1730826607608,5.9099,169.21,169.16,26.86623359]
[1730826607919,102.77613359,169.21,169.15,26.86623359]
[1730826608119,26.86623359,169.2,169.14,26.86623359]
[1730826608717,75.9099,169.21,169.14,26.86623359]
[1730826608718,50.64311759,169.19,169.14,26.86623359]
[1730826608913,23.776884,169.19,169.14,26.86623359]
[1730826609123,50.64311759,169.2,169.14,26.86623359]
[1730826609799,56.55341759,169.2,169.14,26.86623359]
[1730826610011,56.55341759,169.2,169.15,26.86623359]
[1730826610515,56.55341759,169.2,169.14,26.86623359]
[1730826611795,26.86623359,169.19,169.14,26.86623359]
[1730826612127,23.776884,169.18,169.14,26.86623359]
[1730826612426,23.776884,169.19,169.15,26.86623359]
[1730826612623,23.776884,169.19,169.09,14.7846]
[1730826612624,23.776884,169.17,169.12,26.86623359]
[1730826612802,23.776884,169.12,169.07,6.1012]
[1730826613003,50.64311759,169.12,169.07,6.1012]
[1730826613219,23.776884,169.12,169.07,32.96743359]
[1730826613819,26.86623359,169.11,169.06,26.86623359]
[1730826614037,23.776884,169.1,169.06,26.86623359]
[1730826614441,26.86623359,169.13,169.07,26.86623359]
[1730826614615,23.776884,169.13,169.1,26.86623359]
[1730826614808,23.776884,169.14,169.1,26.86623359]
[1730826615617,29.689184,169.14,169.1,26.86623359]
[1730826616035,5.9117,169.16,169.11,26.86623359]
[1730826616333,70.0,169.19,169.04,26.96623359]
[1730826616334,26.86623359,169.2,169.14,26.86623359]
[1730826616540,26.86623359,169.21,169.16,26.86623359]
[1730826616744,26.86623359,169.21,169.15,26.86623359]
[1730826617136,5.9087,169.24,169.16,26.86623359]
[1730826617449,26.86623359,169.25,169.19,26.86623359]
[1730826617634,26.86623359,169.25,169.19,32.77643359]
[1730826618036,26.86623359,169.24,169.19,5.9102]
[1730826618625,26.86623359,169.23,169.19,5.9102]
[1730826618831,26.86623359,169.23,169.13,29.6616]
[1730826618832,23.776884,169.21,169.16,26.86623359]
[1730826619028,26.86623359,169.24,169.18,26.86623359]
[1730826619449,26.86623359,169.22,169.17,26.86623359]
[1730826619655,26.86623359,169.22,169.16,26.86623359]
[1730826620036,26.86623359,169.22,169.17,20.6892]
[1730826620438,3.08329333,169.36,169.23,20.0]
[1730826620781,26.86623359,169.36,169.3,26.86623359]
[1730826621451,32.77043359,169.37,169.31,26.86623359]
[1730826621635,26.86623359,169.37,169.31,26.86623359]
[1730826622042,26.86623359,169.35,169.3,26.86623359]
[1730826622240,26.86623359,169.34,169.29,20.6742]
[1730826622435,26.86623359,169.35,169.29,47.54043359]
[1730826622639,26.86623359,169.35,169.29,41.63373359]
[1730826623061,32.77123359,169.35,169.29,41.63373359]
[1730826623649,23.776884,169.34,169.29,41.63373359]
[1730826623853,50.64311759,169.34,169.29,14.7675]
[1730826624162,50.64311759,169.34,169.29,26.86623359]
[1730826624358,23.776884,169.34,169.3,26.86623359]
[1730826624556,23.776884,169.34,169.31,26.86623359]
[1730826624744,23.776884,169.34,169.3,26.86623359]
[1730826624950,23.776884,169.34,169.29,26.86623359]
[1730826625443,23.776884,169.34,169.32,26.86623359]
[1730826625656,26.86623359,169.38,169.32,26.86623359]
[1730826626045,26.86623359,169.37,169.32,26.86623359]
[1730826626364,26.86623359,169.37,169.31,26.86623359]
[1730826626541,32.77043359,169.37,169.31,26.86623359]
[1730826626737,26.86623359,169.36,169.31,26.86623359]
[1730826627561,26.86623359,169.35,169.3,26.86623359]
[1730826627768,26.86623359,169.35,169.29,41.63373359]
[1730826628660,26.86623359,169.34,169.29,41.63373359]
[1730826628862,24.0871172,169.33,169.29,41.63373359]
[1730826629047,26.86623359,169.31,169.29,14.7675]
[1730826629248,23.776884,169.3,169.29,14.7675]
[1730826629450,50.64311759,169.3,169.29,14.7675]
[1730826630060,50.64311759,169.3,169.24,0.1]
[1730826630249,23.776884,169.28,169.24,26.86623359]
[1730826630946,70.0,169.32,169.24,26.86623359]
[1730826630947,26.86623359,169.3,169.25,26.86623359]
[1730826631252,23.776884,169.29,169.24,32.77483359]
[1730826631455,50.64311759,169.29,169.23,47.54723359]
[1730826631769,23.776884,169.27,169.23,14.772]
[1730826631947,50.64311759,169.27,169.21,26.86623359]
[1730826632156,50.64311759,169.23,169.19,6.2726]
[1730826632349,50.64311759,169.23,169.18,26.86623359]
[1730826632660,23.776884,169.23,169.18,32.77703359]
[1730826632863,26.86623359,169.21,169.15,21.4357]
[1730826633166,23.776884,169.21,169.17,26.86623359]
[1730826633371,26.86623359,169.24,169.19,26.86623359]
[1730826633549,23.776884,169.23,169.21,26.86623359]
[1730826633973,23.776884,169.23,169.19,26.86623359]
[1730826634161,23.776884,169.24,169.19,26.86623359]
[1730826634349,26.86623359,169.28,169.22,26.86623359]
[1730826634552,23.776884,169.27,169.22,26.86623359]
[1730826634744,26.86623359,169.28,169.22,26.86623359]
[1730826634948,26.86623359,169.29,169.24,26.86623359]
[1730826635562,32.77293359,169.3,169.24,26.86623359]
[1730826635758,26.86623359,169.29,169.24,26.86623359]
[1730826635964,26.86623359,169.29,169.23,26.86623359]
[1730826636268,26.86623359,169.29,169.24,26.86623359]
[1730826636560,23.776884,169.28,169.24,32.77483359]
[1730826636953,23.776884,169.28,169.24,47.54673359]
[1730826637544,33.08236679,169.33,169.27,26.86623359]
[1730826637746,0.3102332,169.33,169.29,26.86623359]
[1730826638972,0.3102332,169.33,169.29,32.77313359]
[1730826639271,0.3102332,169.33,169.3,26.86623359]
[1730826640048,0.3102332,169.33,169.32,26.86623359]
[1730826640468,0.3102332,169.33,169.3,26.86623359]
[1730826641191,0.3102332,169.33,169.3,32.77263359]
[1730826641945,27.17646679,169.33,169.29,14.7675]
[1730826642266,23.776884,169.31,169.27,26.86623359]
[1730826642649,23.776884,169.32,169.27,26.86623359]
[1730826642873,50.64311759,169.32,169.26,32.77393359]
[1730826643070,50.64311759,169.32,169.27,26.86623359]
[1730826643669,23.776884,169.32,169.27,26.86623359]
[1730826643861,23.776884,169.32,169.27,32.77383359]
[1730826644470,56.54911759,169.32,169.27,5.9076]
[1730826644655,23.776884,169.3,169.26,14.7701]
[1730826644968,50.64311759,169.3,169.24,26.86623359]
[1730826645882,50.64311759,169.28,169.23,47.54783359]
[1730826646172,50.64311759,169.28,169.23,41.63893359]
[1730826646360,50.64311759,169.28,169.22,26.86623359]
[1730826647267,50.64311759,169.25,169.2,32.77633359]
[1730826647465,23.776884,169.24,169.19,41.64173359]
[1730826647771,23.776884,169.24,169.2,26.86623359]
[1730826648355,23.776884,169.24,169.19,47.55223359]
[1730826649056,56.55181759,169.24,169.19,14.7755]
[1730826649380,23.776884,169.22,169.19,14.7755]
[1730826649580,23.776884,169.22,169.17,32.77733359]
[1730826649754,50.64311759,169.22,169.17,32.77733359]
[1730826649960,50.64311759,169.22,169.16,32.77753359]
[1730826650279,50.64311759,169.22,169.17,26.86623359]
[1730826650465,50.64311759,169.22,169.16,32.77753359]
[1730826650663,50.64311759,169.22,169.16,26.86623359]
[1730826650865,50.64311759,169.22,169.14,26.86623359]
[1730826650866,26.86623359,169.2,169.14,26.86623359]
[1730826651081,23.776884,169.19,169.14,26.86623359]
[1730826651263,23.776884,169.19,169.14,32.77833359]
[1730826651658,50.64311759,169.19,169.14,32.77833359]
[1730826652172,23.776884,169.17,169.12,32.77913359]
[1730826652867,23.776884,169.17,169.14,26.86623359]
[1730826653067,23.776884,169.15,169.11,26.86623359]
[1730826653391,23.776884,169.15,169.1,26.86623359]
[1730826653684,23.776884,169.15,169.11,26.86623359]
[1730826654260,23.776884,169.16,169.12,26.86623359]
[1730826655185,23.776884,169.16,169.14,26.86623359]
[1730826655364,26.86623359,169.22,169.15,26.86623359]
[1730826655568,26.86623359,169.21,169.15,26.86623359]
[1730826656464,26.86623359,169.2,169.14,26.86623359]
[1730826656783,23.776884,169.19,169.14,26.86623359]
[1730826657674,50.64311759,169.19,169.14,26.86623359]
[1730826657872,56.55381759,169.19,169.14,26.86623359]
[1730826658183,29.687584,169.19,169.14,26.86623359]
[1730826658371,29.687584,169.19,169.15,26.86623359]
[1730826658574,29.687584,169.19,169.14,26.86623359]
[1730826659858,56.55381759,169.19,169.14,26.86623359]
[1730826660573,26.86623359,169.18,169.12,47.56073359]
[1730826660771,23.776884,169.17,169.12,47.56073359]
[1730826660975,50.64311759,169.17,169.12,14.7816]
[1730826661172,26.86623359,169.16,169.11,26.86623359]
[1730826661374,50.64311759,169.13,169.08,14.7853]
[1730826661580,23.776884,169.12,169.08,47.56583359]
[1730826661890,23.776884,169.13,169.09,26.86623359]
[1730826662474,50.64311759,169.13,169.07,26.86623359]
[1730826662990,50.64311759,169.11,169.05,26.86623359]
[1730826663291,23.776884,169.11,169.07,26.86623359]
[1730826663478,23.776884,169.13,169.09,26.86623359]
[1730826664274,56.55571759,169.13,169.08,32.78053359]
[1730826664475,29.689484,169.13,169.09,26.86623359]
[1730826665394,23.776884,169.13,169.09,26.86623359]
[1730826665700,23.776884,169.14,169.1,26.86623359]
[1730826666084,23.776884,169.12,169.08,26.86623359]
[1730826667082,23.776884,169.12,169.07,32.78053359]
[1730826667587,23.776884,169.12,169.08,26.86623359]
[1730826669385,26.86623359,169.17,169.11,26.86623359]
[1730826669695,26.86623359,169.17,169.09,20.0]
[1730826669696,26.86623359,169.17,169.08,20.7002]
[1730826669900,26.86623359,169.14,169.08,47.56643359]
[1730826670197,70.0,169.15,169.08,20.7002]
[1730826670578,26.86623359,169.12,169.07,26.86623359]
[1730826670774,50.64311759,169.13,169.07,26.86623359]
[1730826671389,23.776884,169.11,169.07,26.86623359]
[1730826672105,23.776884,169.11,169.07,32.78083359]
[1730826672300,26.86623359,169.15,169.09,26.86623359]
[1730826672483,26.86623359,169.17,169.11,26.86623359]
[1730826672875,26.86623359,169.18,169.12,26.86623359]
[1730826673201,26.86623359,169.17,169.11,26.86623359]
[1730826673379,26.86623359,169.16,169.11,32.77943359]
[1730826673584,26.86623359,169.2,169.14,26.86623359]
[1730826673914,5.9095,169.22,169.17,26.86623359]
[1730826674491,26.86623359,169.24,169.18,26.86623359]
[1730826675604,32.77493359,169.24,169.18,26.86623359]
[1730826675812,26.86623359,169.21,169.16,26.86623359]
[1730826675989,23.776884,169.2,169.16,26.86623359]
[1730826676198,23.776884,169.22,169.17,26.86623359]
[1730826676584,50.64311759,169.22,169.16,26.86623359]
[1730826676913,50.64311759,169.22,169.12,42.75083359]
[1730826676914,50.64311759,169.18,169.12,26.86623359]
[1730826677106,70.0,169.21,169.15,26.86623359]
[1730826677107,26.86623359,169.21,169.15,26.86623359]
[1730826677288,23.776884,169.2,169.16,26.86623359]
[1730826677486,23.776884,169.2,169.16,32.77743359]
[1730826677689,23.776884,169.21,169.17,26.86623359]
[1730826678110,23.776884,169.21,169.16,47.55633359]
[1730826678879,26.86623359,169.18,169.12,14.7818]
[1730826679117,23.776884,169.17,169.13,26.86623359]
[1730826679292,23.776884,169.17,169.14,26.86623359]
[1730826679482,70.0,169.21,169.12,47.56063359]
[1730826679483,50.64311759,169.18,169.12,47.56063359]
[1730826679687,23.776884,169.16,169.12,41.64803359]
[1730826680209,23.776884,169.17,169.12,47.56093359]
[1730826680392,23.776884,169.19,169.14,26.86623359]
[1730826680707,23.776884,169.17,169.13,26.86623359]
[1730826681012,23.776884,169.17,169.12,47.56093359]
[1730826681682,20.0,169.23,169.16,26.86623359]
[1730826681883,26.86623359,169.21,169.15,26.86623359]
[1730826682107,26.86623359,169.2,169.14,26.86623359]
[1730826683105,23.776884,169.2,169.16,26.86623359]
[1730826683801,32.77583359,169.22,169.16,26.86623359]
[1730826683987,50.64311759,169.21,169.15,26.86623359]
[1730826684381,23.776884,169.21,169.16,26.86623359]
[1730826684587,23.776884,169.22,169.17,26.86623359]
[1730826685092,5.9091,169.24,169.17,26.86623359]
[1730826685093,32.77533359,169.24,169.18,26.86623359]
[1730826685286,96.86623359,169.28,169.22,26.86623359]
[1730826685887,26.86623359,169.27,169.21,26.86623359]
[1730826686107,26.86623359,169.28,169.22,26.86623359]
[1730826686321,26.86623359,169.27,169.21,26.86623359]
[1730826686605,5.9071,169.29,169.19,26.86623359]
[1730826686606,23.776884,169.24,169.19,26.86623359]
[1730826686813,23.776884,169.22,169.17,47.55523359]
[1730826686984,23.776884,169.2,169.17,14.778]
[1730826687603,23.776884,169.21,169.17,14.778]
[1730826688513,50.64311759,169.21,169.16,26.86623359]
[1730826688719,50.64311759,169.21,169.15,32.77793359]
[1730826689203,50.64311759,169.21,169.16,26.86623359]
[1730826689801,52.77633359,169.2,169.14,26.86623359]
[1730826690002,26.86623359,169.15,169.11,14.7826]
[1730826690508,50.64311759,169.14,169.09,5.9139]
[1730826690717,26.86623359,169.13,169.09,5.9139]
[1730826690895,23.776884,169.12,169.09,5.9139]
[1730826691293,23.776884,169.12,169.07,56.81853359]
[1730826691294,23.776884,169.12,169.08,47.56643359]
[1730826691707,50.64311759,169.12,169.07,26.86623359]
[1730826691918,23.776884,169.1,169.06,32.78093359]
[1730826692294,23.776884,169.11,169.06,32.78093359]
[1730826692490,50.64311759,169.11,169.06,5.9147]
[1730826693203,26.86623359,169.1,169.05,5.9153]
[1730826693518,23.776884,169.09,169.05,5.9153]
[1730826695321,5.9133,169.11,169.05,5.9153]
[1730826695616,70.0,169.13,169.05,5.9153]
[1730826695617,50.64311759,169.1,169.05,5.9153]
[1730826696326,50.64311759,169.1,169.05,32.78153359]
[1730826697009,26.86623359,169.09,169.04,47.57053359]
[1730826697309,23.776884,169.08,169.04,20.7043]
[1730826698107,50.64311759,169.08,169.04,20.7043]
[1730826698311,26.86623359,169.07,169.04,14.7887]
[1730826698512,26.86623359,169.07,169.03,0.3102332]
[1730826698513,23.776884,169.06,169.03,0.3102332]
[1730826698834,50.64311759,169.06,169.03,0.3102332]
[1730826699013,50.64311759,169.04,169.03,0.3102332]
[1730826699220,23.776884,169.04,169.03,0.3102332]
[1730826700528,23.776884,169.04,169.03,6.2263332]
[1730826700904,26.86623359,169.09,169.03,47.88276679]
[1730826701129,32.77993359,169.1,169.04,26.86623359]
[1730826701421,26.86623359,169.09,169.03,47.88276679]
[1730826701802,32.77993359,169.1,169.04,26.86623359]
[1730826702003,48.22163359,169.11,169.05,26.86623359]
[1730826702198,32.77963359,169.11,169.05,26.86623359]
[1730826702428,26.86623359,169.1,169.04,47.57103359]
[1730826702626,26.86623359,169.09,169.04,20.7048]
[1730826702928,26.86623359,169.05,169.03,0.3102332]
[1730826703106,20.0,169.09,169.03,0.3102332]
[1730826703309,23.776884,169.04,169.03,0.3102332]
[1730826708316,50.64311759,169.04,169.03,0.3102332]
[1730826709336,40.59692059,169.04,169.03,0.3102332]
[1730826711234,46.51262059,169.04,169.03,0.3102332]
[1730826711826,63.33265718,169.04,169.03,0.3102332]
[1730826712340,153.33265718,169.04,169.03,0.3102332]
[1730826713228,136.51262059,169.04,169.03,0.3102332]
[1730826714221,153.33265718,169.04,169.03,0.3102332]
[1730826715941,22.73573659,169.04,169.03,0.3102332]
[1730826716826,109.55577318,169.04,169.03,0.3102332]
[1730826717216,153.33265718,169.04,169.03,0.3102332]
[1730826717616,153.43265718,169.04,169.03,0.3102332]
[1730826718644,153.33265718,169.04,169.03,0.3102332]
[1730826718947,153.43265718,169.04,169.03,0.3102332]
[1730826720220,153.33265718,169.04,169.03,0.3102332]
[1730826720521,153.43265718,169.04,169.03,0.3102332]
[1730826720739,136.61262059,169.04,169.03,0.3102332]
[1730826720932,92.73573659,169.04,169.03,0.3102332]
[1730826721129,22.73573659,169.04,169.03,0.3102332]
[1730826721441,16.82003659,169.04,169.03,0.3102332]
[1730826721640,22.73573659,169.04,169.03,0.3102332]
[1730826722336,46.51262059,169.04,169.03,0.3102332]
[1730826724330,136.51262059,169.04,169.03,0.3102332]
[1730826724648,66.51262059,169.04,169.03,0.3102332]
[1730826727025,153.33265718,169.04,169.03,0.3102332]
[1730826727633,136.51262059,169.04,169.03,0.3102332]
[1730826728334,66.51262059,169.04,169.03,0.3102332]
[1730826728847,83.33265718,169.04,169.03,0.3102332]
[1730826729052,153.33265718,169.04,169.03,0.3102332]
[1730826729248,136.51262059,169.04,169.03,0.3102332]
[1730826731269,113.776884,168.96,168.95,0.3102332]
[1730826731550,60.59692059,168.96,168.95,0.3102332]
[1730826731964,23.776884,168.96,168.95,0.3102332]
[1730826732757,40.59692059,168.96,168.95,0.3102332]
[1730826733050,23.776884,168.96,168.95,0.3102332]
[1730826733640,40.59692059,168.96,168.95,0.3102332]
[1730826733853,23.776884,168.96,168.95,0.3102332]
[1730826734445,40.59692059,168.96,168.95,0.3102332]
[1730826734665,16.82003659,169.01,168.95,23.04896979]
[1730826734962,16.82003659,169.01,168.96,16.82003659]
[1730826735136,16.82003659,169.01,168.95,23.04896979]
[1730826735935,16.82003659,169.0,168.95,6.2289332]
[1730826736445,23.776884,168.99,168.95,6.2289332]
[1730826736947,16.82003659,169.03,168.97,16.82003659]
[1730826737144,20.0,169.02,168.97,16.82003659]
[1730826737344,16.82003659,169.01,168.95,37.84616979]
[1730826737557,16.82003659,168.98,168.95,0.3102332]
[1730826737933,16.82003659,168.96,168.95,0.3102332]
[1730826738128,60.59692059,168.96,168.95,0.3102332]
[1730826739035,66.51542059,168.96,168.95,0.3102332]
[1730826741456,76.64118244,168.96,168.95,0.3102332]
[1730826742138,23.776884,168.96,168.95,0.3102332]
[1730826742352,29.695384,168.96,168.95,0.3102332]
[1730826742573,56.64118244,168.96,168.95,0.3102332]